[Event "*** SCC Grand Prix: Titled Tuesday Blitz"]
[Site "Chess.com"]
[Date "2020.08.04"]
[Round "8"]
[White "louis198"]
[Black "djano"]
[Result "1-0"]
[WhiteElo "2519"]
[BlackElo "2417"]
[TimeControl "180+1"]
[EndTime "15:16:33 PDT"]
[Termination "louis198 won by resignation"]

1. d4 {[%clk 0:03:00.9]} 1... d5 {[%clk 0:02:58.8]} 2. c4 {[%clk 0:03:00.6]}
2... Nc6 {[%clk 0:02:58.5]} 3. Nc3 {[%clk 0:03:01.5]} 3... Nf6 {[%clk
0:02:50.6]} 4. e3 {[%clk 0:03:00.4]} 4... g6 {[%clk 0:02:34.4]} 5. Nf3 {[%clk
0:03:00.1]} 5... Bg7 {[%clk 0:02:31.9]} 6. Be2 {[%clk 0:02:58.9]} 6... Bg4
{[%clk 0:02:21.9]} 7. O-O {[%clk 0:02:53.4]} 7... e6 {[%clk 0:02:20.8]} 8. cxd5
{[%clk 0:02:50.7]} 8... exd5 {[%clk 0:02:10.8]} 9. Ne5 {[%clk 0:02:48.8]} 9...
Bxe2 {[%clk 0:02:05]} 10. Qxe2 {[%clk 0:02:47.1]} 10... O-O {[%clk 0:01:45.5]}
11. Nxc6 {[%clk 0:02:45.7]} 11... bxc6 {[%clk 0:01:46.4]} 12. Rd1 {[%clk
0:02:44]} 12... Rb8 {[%clk 0:01:40.9]} 13. Na4 {[%clk 0:02:40.9]} 13... Ne4
{[%clk 0:01:37.1]} 14. b3 {[%clk 0:02:37.3]} 14... c5 {[%clk 0:01:25.3]} 15. Ba3
{[%clk 0:02:36.3]} 15... cxd4 {[%clk 0:00:58]} 16. Bxf8 {[%clk 0:02:34.1]} 16...
Qxf8 {[%clk 0:00:41.6]} 17. exd4 {[%clk 0:02:29.8]} 17... c5 {[%clk 0:00:41.6]}
18. f3 {[%clk 0:02:17.9]} 18... Nd6 {[%clk 0:00:37.8]} 19. Nxc5 {[%clk 0:02:17]}
19... Nf5 {[%clk 0:00:38]} 20. Qf2 {[%clk 0:02:02.7]} 20... Qd6 {[%clk
0:00:30.9]} 21. g4 {[%clk 0:02:01.5]} 21... Nxd4 {[%clk 0:00:26.8]} 22. Rac1
{[%clk 0:01:42.8]} 22... Ne6 {[%clk 0:00:20.4]} 23. Nxe6 {[%clk 0:01:41.5]}
23... fxe6 {[%clk 0:00:21.3]} 24. Qxa7 {[%clk 0:01:38.5]} 24... Bh6 {[%clk
0:00:17.9]} 25. Rc7 {[%clk 0:01:33.6]} 25... Rf8 {[%clk 0:00:14.5]} 26. Rc3
{[%clk 0:01:27.8]} 26... Qe5 {[%clk 0:00:10.9]} 27. Rcd3 {[%clk 0:01:16.9]}
27... d4 {[%clk 0:00:10.8]} 28. Qxd4 {[%clk 0:01:11.3]} 28... Qxd4+ {[%clk
0:00:09.1]} 29. Rxd4 {[%clk 0:01:11.7]} 29... Be3+ {[%clk 0:00:09.5]} 30. Kg2
{[%clk 0:01:12.3]} 30... Bxd4 {[%clk 0:00:09.4]} 31. Rxd4 {[%clk 0:01:13.2]}
31... Ra8 {[%clk 0:00:09.5]} 32. a4 {[%clk 0:01:13.4]} 32... Rb8 {[%clk
0:00:10]} 33. b4 {[%clk 0:01:13.5]} 33... e5 {[%clk 0:00:09.2]} 34. Re4 {[%clk
0:01:13]} 34... Kf7 {[%clk 0:00:08.6]} 35. b5 {[%clk 0:01:12.9]} 35... Ke6
{[%clk 0:00:08.8]} 36. f4 {[%clk 0:01:12.3]} 36... Kd5 {[%clk 0:00:09]} 37.
Rxe5+ {[%clk 0:01:12.6]} 1-0

[Event "*** SCC Grand Prix: Titled Tuesday Blitz"]
[Site "Chess.com"]
[Date "2020.08.04"]
[Round "8"]
[White "Flopezin"]
[Black "Fh2411"]
[Result "0-1"]
[WhiteElo "2344"]
[BlackElo "2556"]
[TimeControl "180+1"]
[EndTime "15:16:38 PDT"]
[Termination "Fh2411 won by resignation"]

1. c4 {[%clk 0:03:00.9]} 1... c6 {[%clk 0:02:47.9]} 2. e4 {[%clk 0:03:00.6]}
2... e5 {[%clk 0:02:47.8]} 3. Nf3 {[%clk 0:02:58.7]} 3... d6 {[%clk 0:02:48.2]}
4. d4 {[%clk 0:02:59]} 4... Nd7 {[%clk 0:02:48.5]} 5. d5 {[%clk 0:02:57.6]} 5...
c5 {[%clk 0:02:44.5]} 6. Bd3 {[%clk 0:02:56.9]} 6... g6 {[%clk 0:02:43.8]} 7.
O-O {[%clk 0:02:56.6]} 7... Bg7 {[%clk 0:02:44.1]} 8. Ne1 {[%clk 0:02:49.7]}
8... Ne7 {[%clk 0:02:42.9]} 9. Nc3 {[%clk 0:02:48.3]} 9... a6 {[%clk 0:02:20.4]}
10. a3 {[%clk 0:02:46.8]} 10... O-O {[%clk 0:02:20.2]} 11. b4 {[%clk 0:02:47]}
11... b6 {[%clk 0:02:13.5]} 12. h4 {[%clk 0:02:30.2]} 12... f5 {[%clk 0:02:03]}
13. h5 {[%clk 0:02:30.4]} 13... f4 {[%clk 0:01:46.7]} 14. hxg6 {[%clk
0:02:29.5]} 14... Nxg6 {[%clk 0:01:47]} 15. Be2 {[%clk 0:02:24.6]} 15... Nf6
{[%clk 0:01:46.2]} 16. Nf3 {[%clk 0:02:14.5]} 16... h6 {[%clk 0:01:39.5]} 17.
Nh2 {[%clk 0:02:06]} 17... Qd7 {[%clk 0:01:32.5]} 18. bxc5 {[%clk 0:01:49]}
18... bxc5 {[%clk 0:01:32.4]} 19. a4 {[%clk 0:01:47.2]} 19... Kh7 {[%clk
0:01:27.3]} 20. a5 {[%clk 0:01:46.9]} 20... Ra7 {[%clk 0:01:19.5]} 21. Bf3
{[%clk 0:01:42.7]} 21... Rg8 {[%clk 0:01:17]} 22. Na4 {[%clk 0:01:42.2]} 22...
Nh4 {[%clk 0:01:13.5]} 23. Nb6 {[%clk 0:01:41.9]} 23... Qd8 {[%clk 0:01:10.5]}
24. Nxc8 {[%clk 0:01:41.1]} 24... Qxc8 {[%clk 0:01:11.4]} 25. Bg4 {[%clk
0:01:28.5]} 25... Nxg4 {[%clk 0:01:03.3]} 26. Qxg4 {[%clk 0:01:29.4]} 26... Qxg4
{[%clk 0:01:02]} 27. Nxg4 {[%clk 0:01:30.3]} 27... Bh8 {[%clk 0:00:59.5]} 28. f3
{[%clk 0:01:30.8]} 28... h5 {[%clk 0:00:59.4]} 29. Nh2 {[%clk 0:01:18.9]} 29...
Rxg2+ {[%clk 0:00:41.7]} 30. Kh1 {[%clk 0:01:19.3]} 30... Bf6 {[%clk 0:00:42.1]}
31. Ba3 {[%clk 0:01:15.3]} 31... Rag7 {[%clk 0:00:33.2]} 32. Rg1 {[%clk
0:00:58]} 32... Rxh2+ {[%clk 0:00:31.3]} 33. Kxh2 {[%clk 0:00:56.1]} 33... Nxf3+
{[%clk 0:00:32.2]} 34. Kh1 {[%clk 0:00:56]} 34... Rxg1+ {[%clk 0:00:31.1]} 35.
Rxg1 {[%clk 0:00:56.6]} 35... Nxg1 {[%clk 0:00:32]} 36. Kxg1 {[%clk 0:00:57.5]}
36... Bd8 {[%clk 0:00:32.4]} 0-1

[Event "*** SCC Grand Prix: Titled Tuesday Blitz"]
[Site "Chess.com"]
[Date "2020.08.04"]
[Round "8"]
[White "Jenia84"]
[Black "arminmusovic"]
[Result "1-0"]
[WhiteElo "2368"]
[BlackElo "2480"]
[TimeControl "180+1"]
[EndTime "15:16:43 PDT"]
[Termination "Jenia84 won by resignation"]

1. Nf3 {[%clk 0:03:00.9]} 1... a6 {[%clk 0:02:59.5]} 2. g3 {[%clk 0:03:00.7]}
2... e6 {[%clk 0:02:59.8]} 3. Bg2 {[%clk 0:03:01.6]} 3... Nf6 {[%clk 0:03:00.4]}
4. O-O {[%clk 0:03:01.6]} 4... d5 {[%clk 0:03:01.3]} 5. b3 {[%clk 0:03:00.4]}
5... c5 {[%clk 0:03:01.7]} 6. Bb2 {[%clk 0:03:00.8]} 6... Nc6 {[%clk 0:03:00]}
7. d4 {[%clk 0:03:00.4]} 7... cxd4 {[%clk 0:02:57]} 8. Nxd4 {[%clk 0:03:00.9]}
8... Bc5 {[%clk 0:02:57.5]} 9. Nxc6 {[%clk 0:02:58.9]} 9... bxc6 {[%clk
0:02:57.5]} 10. Nd2 {[%clk 0:02:59.4]} 10... O-O {[%clk 0:02:56.8]} 11. e4
{[%clk 0:02:59.8]} 11... Re8 {[%clk 0:02:54.7]} 12. c4 {[%clk 0:02:53.6]} 12...
Bb7 {[%clk 0:02:52.2]} 13. cxd5 {[%clk 0:02:52.4]} 13... exd5 {[%clk 0:02:51.8]}
14. Rc1 {[%clk 0:02:50.4]} 14... Ba7 {[%clk 0:02:44.4]} 15. exd5 {[%clk
0:02:50.1]} 15... cxd5 {[%clk 0:02:43.3]} 16. Nf3 {[%clk 0:02:47.1]} 16... Ne4
{[%clk 0:02:30.1]} 17. Bd4 {[%clk 0:02:42.2]} 17... Bb8 {[%clk 0:02:17.1]} 18.
Re1 {[%clk 0:02:27.9]} 18... a5 {[%clk 0:02:07]} 19. Nd2 {[%clk 0:02:27.1]}
19... Bd6 {[%clk 0:01:56]} 20. Nxe4 {[%clk 0:02:26.8]} 20... dxe4 {[%clk
0:01:56]} 21. Qg4 {[%clk 0:02:22.6]} 21... Bf8 {[%clk 0:01:43.5]} 22. Bxe4
{[%clk 0:02:14.3]} 22... h5 {[%clk 0:01:27.9]} 23. Qf4 {[%clk 0:01:58.9]} 23...
Bxe4 {[%clk 0:01:14.4]} 24. Rxe4 {[%clk 0:01:54.1]} 24... Qd5 {[%clk 0:01:08.3]}
25. Rxe8 {[%clk 0:01:49.5]} 25... Rxe8 {[%clk 0:01:07.8]} 26. Be3 {[%clk
0:01:44.5]} 26... Bd6 {[%clk 0:00:52.7]} 27. Qc4 {[%clk 0:01:37]} 27... Qf3
{[%clk 0:00:43.7]} 28. Qd3 {[%clk 0:01:25.4]} 28... h4 {[%clk 0:00:31.2]} 29.
Qxd6 {[%clk 0:01:12.7]} 29... h3 {[%clk 0:00:27.8]} 30. Qc6 {[%clk 0:01:11.3]}
30... Rxe3 {[%clk 0:00:08.5]} 31. fxe3 {[%clk 0:01:07.4]} 31... Qxe3+ {[%clk
0:00:08.6]} 32. Kh1 {[%clk 0:01:07.3]} 32... Qd2 {[%clk 0:00:08.1]} 33. Qc8+
{[%clk 0:01:04.9]} 33... Kh7 {[%clk 0:00:08.3]} 34. Qxh3+ {[%clk 0:01:04.7]}
34... Kg6 {[%clk 0:00:08.9]} 35. Qg4+ {[%clk 0:00:59.3]} 35... Kh6 {[%clk
0:00:08]} 36. Qf4+ {[%clk 0:00:58.8]} 36... Qxf4 {[%clk 0:00:08.2]} 37. gxf4
{[%clk 0:00:59.7]} 37... f5 {[%clk 0:00:08.8]} 1-0

[Event "*** SCC Grand Prix: Titled Tuesday Blitz"]
[Site "Chess.com"]
[Date "2020.08.04"]
[Round "8"]
[White "Dr_crypt"]
[Black "LubovMarkelova"]
[Result "0-1"]
[WhiteElo "2420"]
[BlackElo "2267"]
[TimeControl "180+1"]
[EndTime "15:16:51 PDT"]
[Termination "LubovMarkelova won by resignation"]

1. d4 {[%clk 0:02:19.6]} 1... d5 {[%clk 0:02:58]} 2. Nf3 {[%clk 0:02:19.5]} 2...
Nf6 {[%clk 0:02:57.5]} 3. Bf4 {[%clk 0:02:19.9]} 3... c6 {[%clk 0:02:48.3]} 4.
e3 {[%clk 0:02:20.2]} 4... Qb6 {[%clk 0:02:48]} 5. Qc1 {[%clk 0:02:18.2]} 5...
Bf5 {[%clk 0:02:47.3]} 6. c4 {[%clk 0:02:16.8]} 6... dxc4 {[%clk 0:02:44.5]} 7.
Nbd2 {[%clk 0:02:15.2]} 7... Nd5 {[%clk 0:02:32.1]} 8. Bg3 {[%clk 0:02:10.2]}
8... Bd3 {[%clk 0:02:11]} 9. Nxc4 {[%clk 0:01:59.9]} 9... Qb4+ {[%clk 0:02:06]}
10. Nfd2 {[%clk 0:01:33.8]} 10... Bxf1 {[%clk 0:02:02.5]} 11. Kxf1 {[%clk
0:01:34.7]} 11... e6 {[%clk 0:02:00.1]} 12. a3 {[%clk 0:01:20.5]} 12... Qb5
{[%clk 0:01:59.5]} 13. h4 {[%clk 0:01:19]} 13... Be7 {[%clk 0:01:58.6]} 14. h5
{[%clk 0:01:18.6]} 14... h6 {[%clk 0:01:53.9]} 15. Kg1 {[%clk 0:01:15.1]} 15...
O-O {[%clk 0:01:52.2]} 16. Ne5 {[%clk 0:01:07.7]} 16... Na6 {[%clk 0:01:40.2]}
17. b4 {[%clk 0:01:04.3]} 17... Rac8 {[%clk 0:01:27.7]} 18. Nb3 {[%clk
0:01:02.8]} 18... b6 {[%clk 0:01:21]} 19. Bh4 {[%clk 0:00:59.2]} 19... c5 {[%clk
0:00:47.8]} 20. Bxe7 {[%clk 0:00:56.8]} 20... Nxe7 {[%clk 0:00:46.7]} 21. dxc5
{[%clk 0:00:32.6]} 21... bxc5 {[%clk 0:00:46.1]} 22. Qb2 {[%clk 0:00:17.8]}
22... c4 {[%clk 0:00:42]} 23. a4 {[%clk 0:00:14.9]} 23... Qxb4 {[%clk
0:00:41.3]} 24. Nxc4 {[%clk 0:00:10]} 24... Rxc4 {[%clk 0:00:39.3]} 25. Rh3
{[%clk 0:00:10.9]} 25... Rb8 {[%clk 0:00:36.7]} 26. Rg3 {[%clk 0:00:11.2]} 26...
Nf5 {[%clk 0:00:33.9]} 0-1

[Event "*** SCC Grand Prix: Titled Tuesday Blitz"]
[Site "Chess.com"]
[Date "2020.08.04"]
[Round "8"]
[White "creativity"]
[Black "Cambek64"]
[Result "0-1"]
[WhiteElo "2058"]
[BlackElo "2369"]
[TimeControl "180+1"]
[EndTime "15:16:55 PDT"]
[Termination "Cambek64 won on time"]

1. d4 {[%clk 0:03:00.9]} 1... c5 {[%clk 0:03:00.1]} 2. dxc5 {[%clk 0:02:58.4]}
2... Qa5+ {[%clk 0:02:58.3]} 3. Nc3 {[%clk 0:02:57.7]} 3... Qxc5 {[%clk
0:02:58]} 4. e4 {[%clk 0:02:53.6]} 4... e6 {[%clk 0:02:55]} 5. Nf3 {[%clk
0:02:50.5]} 5... a6 {[%clk 0:02:54.1]} 6. Be3 {[%clk 0:02:45.3]} 6... Qc7 {[%clk
0:02:53.6]} 7. Bd3 {[%clk 0:02:41.1]} 7... b5 {[%clk 0:02:53.8]} 8. O-O {[%clk
0:02:39.2]} 8... Bb7 {[%clk 0:02:53.2]} 9. Re1 {[%clk 0:02:37.8]} 9... d6 {[%clk
0:02:50.5]} 10. a3 {[%clk 0:02:33.1]} 10... Nd7 {[%clk 0:02:50.6]} 11. Nd4
{[%clk 0:02:28.5]} 11... Ngf6 {[%clk 0:02:49.8]} 12. f4 {[%clk 0:02:27.1]} 12...
Be7 {[%clk 0:02:49.9]} 13. f5 {[%clk 0:02:05.5]} 13... e5 {[%clk 0:02:48.7]} 14.
Nb3 {[%clk 0:01:37.4]} 14... Rc8 {[%clk 0:02:46.8]} 15. Kh1 {[%clk 0:01:29.4]}
15... Nc5 {[%clk 0:02:45.2]} 16. Bf2 {[%clk 0:01:05.7]} 16... O-O {[%clk
0:02:36.5]} 17. Qe2 {[%clk 0:00:57.7]} 17... Nxd3 {[%clk 0:02:28.8]} 18. cxd3
{[%clk 0:00:56.9]} 18... d5 {[%clk 0:02:23.6]} 19. exd5 {[%clk 0:00:51.3]} 19...
Nxd5 {[%clk 0:02:23.6]} 20. Qxe5 {[%clk 0:00:48.4]} 20... Bd6 {[%clk 0:02:15.3]}
21. Nxd5 {[%clk 0:00:47.3]} 21... Bxe5 {[%clk 0:02:14.8]} 22. Nxc7 {[%clk
0:00:46.8]} 22... Bxc7 {[%clk 0:02:15.1]} 23. Re7 {[%clk 0:00:45]} 23... Bd5
{[%clk 0:02:08.6]} 24. Nd2 {[%clk 0:00:40.2]} 24... Bf4 {[%clk 0:01:56.3]} 25.
Ne4 {[%clk 0:00:35.3]} 25... Rc2 {[%clk 0:01:52.7]} 26. Bg3 {[%clk 0:00:31.4]}
26... Bxg3 {[%clk 0:01:45.8]} 27. hxg3 {[%clk 0:00:30.5]} 27... Rxb2 {[%clk
0:01:40.7]} 28. f6 {[%clk 0:00:30.2]} 28... Rc8 {[%clk 0:01:30.2]} 29. fxg7
{[%clk 0:00:15.4]} 29... Kxg7 {[%clk 0:01:14.2]} 30. Rf1 {[%clk 0:00:13.2]}
30... Rcc2 {[%clk 0:01:05.9]} 31. Rd7 {[%clk 0:00:09.2]} 31... Rxg2 {[%clk
0:01:01.2]} 0-1

[Event "*** SCC Grand Prix: Titled Tuesday Blitz"]
[Site "Chess.com"]
[Date "2020.08.04"]
[Round "8"]
[White "maxip32"]
[Black "Mikhail_Golubev"]
[Result "0-1"]
[WhiteElo "2475"]
[BlackElo "2600"]
[TimeControl "180+1"]
[EndTime "15:16:57 PDT"]
[Termination "Mikhail_Golubev won on time"]

1. e4 {[%clk 0:03:00.9]} 1... c5 {[%clk 0:02:59.5]} 2. Nf3 {[%clk 0:03:00.9]}
2... d6 {[%clk 0:02:59.7]} 3. d4 {[%clk 0:02:59.7]} 3... Nf6 {[%clk 0:02:59.6]}
4. Nc3 {[%clk 0:02:57.6]} 4... cxd4 {[%clk 0:02:59.7]} 5. Nxd4 {[%clk
0:02:56.4]} 5... g6 {[%clk 0:02:59.7]} 6. Be3 {[%clk 0:02:52.5]} 6... Bg7 {[%clk
0:02:59.6]} 7. f3 {[%clk 0:02:52.7]} 7... Nc6 {[%clk 0:02:59.1]} 8. Qd2 {[%clk
0:02:53.6]} 8... O-O {[%clk 0:02:58.7]} 9. g4 {[%clk 0:02:53.7]} 9... Be6 {[%clk
0:02:56.3]} 10. Nxe6 {[%clk 0:02:53.2]} 10... fxe6 {[%clk 0:02:56.2]} 11. O-O-O
{[%clk 0:02:54.1]} 11... Ne5 {[%clk 0:02:54]} 12. Be2 {[%clk 0:02:53.9]} 12...
Qc8 {[%clk 0:02:53.9]} 13. Bh6 {[%clk 0:02:28.7]} 13... Bxh6 {[%clk 0:02:30.3]}
14. Qxh6 {[%clk 0:02:29.6]} 14... Qc5 {[%clk 0:02:30.3]} 15. h4 {[%clk
0:02:24.7]} 15... b5 {[%clk 0:02:26.6]} 16. h5 {[%clk 0:01:44.6]} 16... Nf7
{[%clk 0:01:47.3]} 17. Qd2 {[%clk 0:01:40.9]} 17... g5 {[%clk 0:01:39.5]} 18.
Nxb5 {[%clk 0:01:37.1]} 18... h6 {[%clk 0:01:21.1]} 19. Nd4 {[%clk 0:01:35.7]}
19... Qc8 {[%clk 0:01:20.7]} 20. Qe3 {[%clk 0:01:16.1]} 20... Rb8 {[%clk
0:01:16.5]} 21. b3 {[%clk 0:01:01.2]} 21... Qc5 {[%clk 0:00:41.9]} 22. Qd2
{[%clk 0:00:53.9]} 22... Ne5 {[%clk 0:00:32.1]} 23. Nxe6 {[%clk 0:00:32.4]}
23... Qa3+ {[%clk 0:00:32]} 24. Kb1 {[%clk 0:00:32.6]} 24... Rfc8 {[%clk
0:00:32.5]} 25. Rc1 {[%clk 0:00:13.9]} 25... a5 {[%clk 0:00:30.5]} 26. f4 {[%clk
0:00:13.4]} 26... Nxe4 {[%clk 0:00:28]} 0-1

[Event "*** SCC Grand Prix: Titled Tuesday Blitz"]
[Site "Chess.com"]
[Date "2020.08.04"]
[Round "8"]
[White "SamuelGhimpu2003"]
[Black "MF1966Idrisov"]
[Result "1-0"]
[WhiteElo "2562"]
[BlackElo "2357"]
[TimeControl "180+1"]
[EndTime "15:16:57 PDT"]
[Termination "SamuelGhimpu2003 won on time"]

1. e4 {[%clk 0:02:59.9]} 1... d5 {[%clk 0:02:56.7]} 2. exd5 {[%clk 0:02:55.4]}
2... Qxd5 {[%clk 0:02:56.4]} 3. Nf3 {[%clk 0:02:54.8]} 3... a6 {[%clk
0:02:55.4]} 4. d4 {[%clk 0:02:52.6]} 4... Nf6 {[%clk 0:02:53.9]} 5. c4 {[%clk
0:02:51.8]} 5... Qd6 {[%clk 0:02:53.8]} 6. Nc3 {[%clk 0:02:50.8]} 6... Bg4
{[%clk 0:02:52.7]} 7. h3 {[%clk 0:02:39.8]} 7... Bh5 {[%clk 0:02:50.7]} 8. Be2
{[%clk 0:02:37.5]} 8... e6 {[%clk 0:02:49.9]} 9. Be3 {[%clk 0:02:30.5]} 9... Be7
{[%clk 0:02:44]} 10. Ne5 {[%clk 0:02:26.6]} 10... Bxe2 {[%clk 0:02:41.7]} 11.
Qxe2 {[%clk 0:02:27.5]} 11... Nc6 {[%clk 0:02:39.6]} 12. Nxc6 {[%clk 0:02:23.2]}
12... Qxc6 {[%clk 0:02:39.6]} 13. O-O {[%clk 0:02:23.3]} 13... O-O {[%clk
0:02:38.7]} 14. Rad1 {[%clk 0:02:20.3]} 14... Rad8 {[%clk 0:02:32.6]} 15. Rfe1
{[%clk 0:02:19.1]} 15... Rd7 {[%clk 0:02:24.2]} 16. Bf4 {[%clk 0:02:06.3]} 16...
Rfd8 {[%clk 0:02:18.5]} 17. Be5 {[%clk 0:02:06.4]} 17... Ne8 {[%clk 0:02:05.5]}
18. d5 {[%clk 0:01:59.1]} 18... exd5 {[%clk 0:02:01]} 19. Nxd5 {[%clk 0:02:00]}
19... Bf8 {[%clk 0:01:44.9]} 20. Bc3 {[%clk 0:01:40.6]} 20... b5 {[%clk
0:01:37]} 21. b3 {[%clk 0:01:28.8]} 21... bxc4 {[%clk 0:01:35.7]} 22. bxc4
{[%clk 0:01:29.7]} 22... Nd6 {[%clk 0:01:33.1]} 23. Nf6+ {[%clk 0:01:07]} 23...
gxf6 {[%clk 0:01:20.1]} 24. Qg4+ {[%clk 0:01:07.1]} 24... Bg7 {[%clk 0:01:19.5]}
25. Bxf6 {[%clk 0:01:08]} 25... Nf5 {[%clk 0:01:14.6]} 26. Bxd8 {[%clk
0:01:05.9]} 26... Rxd1 {[%clk 0:00:44.4]} 27. Rxd1 {[%clk 0:01:05.5]} 27... Qe6
{[%clk 0:00:16.4]} 28. Bxc7 {[%clk 0:00:51.9]} 28... h6 {[%clk 0:00:16.6]} 29.
c5 {[%clk 0:00:48]} 29... Kh7 {[%clk 0:00:15.9]} 30. Bd6 {[%clk 0:00:46.1]}
30... Bf6 {[%clk 0:00:14.5]} 31. c6 {[%clk 0:00:43.9]} 1-0

[Event "*** SCC Grand Prix: Titled Tuesday Blitz"]
[Site "Chess.com"]
[Date "2020.08.04"]
[Round "8"]
[White "BlueWizzard"]
[Black "Bigfish1995"]
[Result "0-1"]
[WhiteElo "2708"]
[BlackElo "2973"]
[TimeControl "180+1"]
[EndTime "15:17:06 PDT"]
[Termination "Bigfish1995 won by resignation"]

1. c4 {[%clk 0:03:00.9]} 1... e5 {[%clk 0:02:59.7]} 2. e3 {[%clk 0:02:59.7]}
2... Nf6 {[%clk 0:02:58.8]} 3. a3 {[%clk 0:02:58.7]} 3... g6 {[%clk 0:02:55.6]}
4. b4 {[%clk 0:02:53.5]} 4... Bg7 {[%clk 0:02:54.7]} 5. Bb2 {[%clk 0:02:54.1]}
5... d6 {[%clk 0:02:55.1]} 6. g3 {[%clk 0:02:53.7]} 6... O-O {[%clk 0:02:51.9]}
7. Bg2 {[%clk 0:02:54.2]} 7... a5 {[%clk 0:02:45.7]} 8. d3 {[%clk 0:02:52.7]}
8... Na6 {[%clk 0:02:45.1]} 9. bxa5 {[%clk 0:02:45.6]} 9... Nc5 {[%clk
0:02:44.2]} 10. Ne2 {[%clk 0:02:45.2]} 10... Bf5 {[%clk 0:02:41.4]} 11. e4
{[%clk 0:02:44.8]} 11... Bd7 {[%clk 0:02:40.7]} 12. Nbc3 {[%clk 0:02:44.4]}
12... Rxa5 {[%clk 0:02:40.6]} 13. O-O {[%clk 0:02:43.1]} 13... Ne8 {[%clk
0:02:21.3]} 14. h3 {[%clk 0:02:27.7]} 14... f5 {[%clk 0:02:18.4]} 15. exf5
{[%clk 0:02:26.2]} 15... Bxf5 {[%clk 0:02:16.1]} 16. Ne4 {[%clk 0:02:18.4]}
16... Nxe4 {[%clk 0:02:06.6]} 17. dxe4 {[%clk 0:02:19.3]} 17... Be6 {[%clk
0:02:06.9]} 18. Rc1 {[%clk 0:02:16.6]} 18... b6 {[%clk 0:02:04.7]} 19. Qd2
{[%clk 0:02:11.3]} 19... Qd7 {[%clk 0:02:02.1]} 20. Kh2 {[%clk 0:02:11.2]} 20...
Rc5 {[%clk 0:02:01]} 21. Qd3 {[%clk 0:02:05.2]} 21... Qc6 {[%clk 0:01:54.5]} 22.
f4 {[%clk 0:02:05.2]} 22... Bxc4 {[%clk 0:01:51.3]} 23. Qd2 {[%clk 0:02:04.4]}
23... Nf6 {[%clk 0:01:45]} 24. f5 {[%clk 0:01:37.4]} 24... Nxe4 {[%clk
0:01:42.4]} 25. Qe3 {[%clk 0:01:37.6]} 25... gxf5 {[%clk 0:01:37.7]} 26. Rxf5
{[%clk 0:01:34.2]} 26... Rxf5 {[%clk 0:01:29]} 27. Bxe4 {[%clk 0:01:34]} 27...
Rf2+ {[%clk 0:01:29.3]} 28. Kg1 {[%clk 0:01:19.4]} 28... Rxe2 {[%clk 0:01:25.6]}
29. Qxe2 {[%clk 0:01:19.2]} 29... d5 {[%clk 0:01:16.4]} 30. Qg4 {[%clk
0:00:24.2]} 30... dxe4 {[%clk 0:01:15.7]} 31. Qc8+ {[%clk 0:00:24.2]} 31... Kf7
{[%clk 0:01:15.7]} 32. Qf5+ {[%clk 0:00:19.4]} 32... Ke7 {[%clk 0:01:15]} 33.
Rd1 {[%clk 0:00:13.3]} 33... Bd3 {[%clk 0:01:10.7]} 34. Qg5+ {[%clk 0:00:11.7]}
34... Qf6 {[%clk 0:01:10]} 35. Qe3 {[%clk 0:00:11.4]} 35... Bh6 {[%clk
0:01:08.4]} 36. Qe1 {[%clk 0:00:10]} 36... Rc2 {[%clk 0:01:07.3]} 37. Rxd3
{[%clk 0:00:07.3]} 37... exd3 {[%clk 0:01:05.6]} 38. Bxe5 {[%clk 0:00:08.2]}
38... Qf3 {[%clk 0:00:58.3]} 39. Qb4+ {[%clk 0:00:08.2]} 39... Kd7 {[%clk
0:00:52.7]} 40. Qa4+ {[%clk 0:00:07.9]} 40... Kc8 {[%clk 0:00:52.2]} 41. Qa6+
{[%clk 0:00:04.6]} 41... Kd8 {[%clk 0:00:51.8]} 0-1

[Event "*** SCC Grand Prix: Titled Tuesday Blitz"]
[Site "Chess.com"]
[Date "2020.08.04"]
[Round "8"]
[White "Lucas_Tomiello"]
[Black "diablanni"]
[Result "1-0"]
[WhiteElo "2464"]
[BlackElo "2320"]
[TimeControl "180+1"]
[EndTime "15:17:10 PDT"]
[Termination "Lucas_Tomiello won by resignation"]

1. e4 {[%clk 0:03:00.9]} 1... c5 {[%clk 0:02:57.1]} 2. Nf3 {[%clk 0:03:00.8]}
2... Nc6 {[%clk 0:02:57.2]} 3. Bb5 {[%clk 0:02:58.8]} 3... Nf6 {[%clk
0:02:56.6]} 4. Nc3 {[%clk 0:02:52.3]} 4... g6 {[%clk 0:02:48.4]} 5. Bxc6 {[%clk
0:02:50.7]} 5... dxc6 {[%clk 0:02:44.2]} 6. d3 {[%clk 0:02:50]} 6... Bg7 {[%clk
0:02:33.2]} 7. h3 {[%clk 0:02:43.2]} 7... O-O {[%clk 0:02:29]} 8. Be3 {[%clk
0:02:41.9]} 8... b6 {[%clk 0:02:27.1]} 9. O-O {[%clk 0:02:41.4]} 9... e5 {[%clk
0:02:15.7]} 10. Qd2 {[%clk 0:02:38.4]} 10... Nh5 {[%clk 0:02:07.6]} 11. Bh6
{[%clk 0:02:28.3]} 11... Qd6 {[%clk 0:02:07.2]} 12. Rae1 {[%clk 0:02:13.9]}
12... f6 {[%clk 0:02:03.1]} 13. Bxg7 {[%clk 0:02:10.2]} 13... Nxg7 {[%clk
0:01:56.1]} 14. Nh2 {[%clk 0:02:08.3]} 14... Ne6 {[%clk 0:01:45.8]} 15. g3
{[%clk 0:01:55.2]} 15... a5 {[%clk 0:01:36.8]} 16. Rd1 {[%clk 0:01:43.6]} 16...
Ra7 {[%clk 0:01:29.7]} 17. Kg2 {[%clk 0:01:30.8]} 17... f5 {[%clk 0:01:25.1]}
18. exf5 {[%clk 0:01:27]} 18... gxf5 {[%clk 0:01:23.9]} 19. Rde1 {[%clk
0:01:11.4]} 19... Nd4 {[%clk 0:01:11.6]} 20. Ne2 {[%clk 0:01:02.1]} 20... Qd5+
{[%clk 0:01:00.2]} 21. f3 {[%clk 0:00:57.9]} 21... Rg7 {[%clk 0:00:58.7]} 22.
Nxd4 {[%clk 0:00:56]} 22... cxd4 {[%clk 0:00:57.5]} 23. c4 {[%clk 0:00:51.4]}
23... Qd6 {[%clk 0:00:48.2]} 24. f4 {[%clk 0:00:45.3]} 24... exf4 {[%clk
0:00:18.2]} 25. Qxf4 {[%clk 0:00:44.6]} 25... Qd8 {[%clk 0:00:12.4]} 26. Re5
{[%clk 0:00:41.4]} 26... c5 {[%clk 0:00:12.1]} 27. Nf3 {[%clk 0:00:34.3]} 27...
Qd7 {[%clk 0:00:11.5]} 28. Kh2 {[%clk 0:00:33.3]} 28... Bb7 {[%clk 0:00:11.2]}
29. Nh4 {[%clk 0:00:28.5]} 29... Qc6 {[%clk 0:00:10.5]} 30. Rxf5 {[%clk
0:00:26.5]} 30... Qe8 {[%clk 0:00:06.7]} 31. Rxf8+ {[%clk 0:00:26.4]} 1-0